{"text_format":"1","workbook":"xlsx","n_sheets":3,"sheets":["Лист1","Лист2","Лист3"],"not_rendered":{"charts":0,"images":0,"macros":1,"external_links":0,"defined_names":0,"comments":0,"pivot_tables":0},"unopened":[],"bounds":{"document_bytes":16777216,"sheet_cells":100000,"rows_first":2000,"rows_last":500,"rows_between":2000,"halvings":0,"cell_chars":16384,"cell_head_chars":4096},"cells_cut":0,"cells_raw":0,"read":"whole","date_system":"1900"}

{"sheet":"Лист1","index":0,"n_rows":37,"n_cols":2,"rows_kept":37,"cut":false,"hidden":false,"merged":[]}
[]
[]
[]
[]
[]
[]
["Баркод Русского Продукта / Наименование SKU"]
["Желе быст.пр. \"Вкус апельсина\" 50г/35*4",{"$f":"f(A8)","v":50}]
["Желе быст.пр. \"Вкус апельсина\" 50г/35*4",{"$f":"f(A9)","v":50}]
["Желе быст.пр. \"Вкус вишни\" 50г/35*4",50]
["Желе быст.пр. \"Вкус зел.яблока\" 50г/35*4",50]
["Желе быст.пр. \"Вкус клубники\" 50г/35*4",50]
["Желе быст.пр. \"Вкус малины\" 50г/35*4",50]
["Цикорий \"Coffitel\" Классический 100гр/12 пакет",100]
["Желе быст.пр. \"Вкус вишни\" 50г/35*4",50]
["Желе быст.пр. \"Вкус клубники\" 50г/35*4",50]
["Перец чёрный горошек 50г/16*6",50]
["Кисель \"Вишневый\" 90г/18*4",90]
["Кисель \"Малиновый\"90 г./18*4",90]
["Кисель \"Персиковый\"90 г./18*4",90]
["Кисель \"Чёрная смородина\"220 г./30",220]
["Кисель\"Вишнёвый\"220 г./30",220]
["Кисель\"Плодово - Ягодный\"220 г./30",220]
["Крем заварной \"Вкус клубники\" 120г/15*4",120]
["Горчичный порошок 200г/56",200]
["195Суперсуп  \"Борщ по-украински\" 70 г/20*6",70]
["Желе быст.пр. \"Вкус апельсина\" 50г/35*4",50]
["Желе быст.пр. \"Вкус зел.яблока\" 50г/35*4",50]
["Чипсы \"Московский\" чизбургер 70г/24",70]
["251Суперсуп  т/с  \"Кура/гренки\" 40г/12",40]
["254Суперсуп -пюре т/с  \"Грибы/гренки\" 45г/12",45]
["251Суперсуп  т/с  \"Кура/гренки\" 40г/12",40]
["-- Приправа Универсальная 70г/80",70]
["Желе быст.пр. \"Вкус зел.яблока\" 50г/35*4",50]
["234Суп \"Мясной с вермишелью\"60 г/25*4",60]
["236Суп \"Харчо острый\" 60 г/25*4",60]
["Кекс \"Лимонный\" 400г/18",400]

{"sheet":"Лист2","index":1,"n_rows":0,"n_cols":0,"rows_kept":0,"cut":false,"hidden":false,"merged":[]}

{"sheet":"Лист3","index":2,"n_rows":0,"n_cols":0,"rows_kept":0,"cut":false,"hidden":false,"merged":[]}